[Event "Live Chess"]
[Site "Chess.com"]
[Date "2011.02.01"]
[Round "-"]
[White "tattooindude"]
[Black "hipposcottimus"]
[Result "0-1"]
[CurrentPosition "8/pp5p/5Q1P/2p3Pk/4p3/PPK5/6q1/8 w - -"]
[Timezone "UTC"]
[ECO "A00"]
[ECOUrl "https://www.chess.com/openings/Mieses-Opening-Reversed-Rat-Valencia-Variation"]
[UTCDate "2011.02.01"]
[UTCTime "04:16:36"]
[WhiteElo "1705"]
[BlackElo "1669"]
[TimeControl "60"]
[Termination "hipposcottimus won on time"]
[StartTime "04:16:36"]
[EndDate "2011.02.01"]
[EndTime "04:18:54"]
[Link "https://www.chess.com/game/live/93521245"]

1. d3 {[%clk 0:01:00]} 1... e5 {[%clk 0:01:00]} 2. Nd2 {[%clk 0:00:59.9]} 2... d5 {[%clk 0:00:59.7]} 3. e3 {[%clk 0:00:59.8]} 3... d4 {[%clk 0:00:59]} 4. Ne2 {[%clk 0:00:59.7]} 4... c5 {[%clk 0:00:58.4]} 5. e4 {[%clk 0:00:58.8]} 5... f5 {[%clk 0:00:57.7]} 6. h3 {[%clk 0:00:58.1]} 6... fxe4 {[%clk 0:00:56.6]} 7. dxe4 {[%clk 0:00:58]} 7... Nf6 {[%clk 0:00:55.2]} 8. g4 {[%clk 0:00:57.1]} 8... Bd6 {[%clk 0:00:54.9]} 9. Ng3 {[%clk 0:00:56.1]} 9... Nc6 {[%clk 0:00:51.7]} 10. Bd3 {[%clk 0:00:55]} 10... Bd7 {[%clk 0:00:48.3]} 11. a3 {[%clk 0:00:53.5]} 11... Qc7 {[%clk 0:00:45.9]} 12. b3 {[%clk 0:00:52.6]} 12... O-O {[%clk 0:00:41.6]} 13. Nc4 {[%clk 0:00:50.1]} 13... Ne7 {[%clk 0:00:40.7]} 14. Bd2 {[%clk 0:00:49]} 14... Bc6 {[%clk 0:00:39.7]} 15. Qc1 {[%clk 0:00:47.8]} 15... Ne8 {[%clk 0:00:35]} 16. Rg1 {[%clk 0:00:46.7]} 16... Nc8 {[%clk 0:00:34.7]} 17. Bh6 {[%clk 0:00:44.3]} 17... Nb6 {[%clk 0:00:34.4]} 18. Bxg7 {[%clk 0:00:42.9]} 18... Kxg7 {[%clk 0:00:33.4]} 19. Nf5+ {[%clk 0:00:41.7]} 19... Kh8 {[%clk 0:00:33.1]} 20. Ncxd6 {[%clk 0:00:39.7]} 20... Nxd6 {[%clk 0:00:31.7]} 21. Qg5 {[%clk 0:00:37.7]} 21... Nxf5 {[%clk 0:00:29.4]} 22. gxf5 {[%clk 0:00:36.8]} 22... Rf7 {[%clk 0:00:23.9]} 23. f6 {[%clk 0:00:34]} 23... Nd7 {[%clk 0:00:19.2]} 24. Rg3 {[%clk 0:00:31.5]} 24... Nxf6 {[%clk 0:00:17.4]} 25. O-O-O {[%clk 0:00:29.4]} 25... Bxe4 {[%clk 0:00:16.5]} 26. Bxe4 {[%clk 0:00:27.7]} 26... Nxe4 {[%clk 0:00:15.8]} 27. Qh6 {[%clk 0:00:21.2]} 27... Nxg3 {[%clk 0:00:14.4]} 28. fxg3 {[%clk 0:00:21.1]} 28... Rf2 {[%clk 0:00:12.7]} 29. g4 {[%clk 0:00:20]} 29... e4 {[%clk 0:00:11.7]} 30. g5 {[%clk 0:00:19]} 30... d3 {[%clk 0:00:10.9]} 31. h4 {[%clk 0:00:17.9]} 31... Qf4+ {[%clk 0:00:10.3]} 32. Kb1 {[%clk 0:00:15.1]} 32... Rf1 {[%clk 0:00:10]} 33. Rxf1 {[%clk 0:00:12.2]} 33... dxc2+ {[%clk 0:00:09.6]} 34. Kxc2 {[%clk 0:00:11]} 34... Qxf1 {[%clk 0:00:09.3]} 35. h5 {[%clk 0:00:09.6]} 35... Qg2+ {[%clk 0:00:07.3]} 36. Kc3 {[%clk 0:00:07.2]} 36... Rd8 {[%clk 0:00:05.7]} 37. Qf6+ {[%clk 0:00:04]} 37... Kg8 {[%clk 0:00:04.1]} 38. Qxd8+ {[%clk 0:00:03]} 38... Kf7 {[%clk 0:00:03.8]} 39. h6 {[%clk 0:00:02]} 39... Kg6 {[%clk 0:00:02.6]} 40. Qf6+ {[%clk 0:00:00.4]} 40... Kh5 {[%clk 0:00:02.2]} 0-1

[Event "Live Chess"]
[Site "Chess.com"]
[Date "2011.02.01"]
[Round "-"]
[White "hipposcottimus"]
[Black "tattooindude"]
[Result "0-1"]
[CurrentPosition "8/2p1kr2/pp1p4/3PnK2/2P1P3/8/PP5P/4RR2 w - -"]
[Timezone "UTC"]
[ECO "C00"]
[ECOUrl "https://www.chess.com/openings/French-Defense-Knight-Variation"]
[UTCDate "2011.02.01"]
[UTCTime "04:14:02"]
[WhiteElo "1669"]
[BlackElo "1705"]
[TimeControl "60"]
[Termination "tattooindude won on time"]
[StartTime "04:14:02"]
[EndDate "2011.02.01"]
[EndTime "04:16:15"]
[Link "https://www.chess.com/game/live/93520684"]

1. e4 {[%clk 0:01:00]} 1... e6 {[%clk 0:01:00]} 2. Nf3 {[%clk 0:00:59.5]} 2... Ne7 {[%clk 0:00:59.9]} 3. d4 {[%clk 0:00:58.8]} 3... d6 {[%clk 0:00:59.8]} 4. d5 {[%clk 0:00:58.3]} 4... e5 {[%clk 0:00:58.2]} 5. c4 {[%clk 0:00:58]} 5... a6 {[%clk 0:00:57.3]} 6. Nc3 {[%clk 0:00:57.8]} 6... Nd7 {[%clk 0:00:56.5]} 7. Be2 {[%clk 0:00:57.5]} 7... b6 {[%clk 0:00:55.8]} 8. Nd2 {[%clk 0:00:57.3]} 8... h6 {[%clk 0:00:55]} 9. O-O {[%clk 0:00:57]} 9... g5 {[%clk 0:00:53.8]} 10. f4 {[%clk 0:00:56.8]} 10... gxf4 {[%clk 0:00:51.3]} 11. Nb3 {[%clk 0:00:56.6]} 11... Ng6 {[%clk 0:00:50.5]} 12. Bh5 {[%clk 0:00:54.4]} 12... Be7 {[%clk 0:00:49.4]} 13. Bxg6 {[%clk 0:00:53.6]} 13... fxg6 {[%clk 0:00:48.8]} 14. Bxf4 {[%clk 0:00:52.9]} 14... exf4 {[%clk 0:00:47.2]} 15. Rxf4 {[%clk 0:00:51.8]} 15... Ne5 {[%clk 0:00:47.1]} 16. Nd4 {[%clk 0:00:49.5]} 16... g5 {[%clk 0:00:46.1]} 17. Rf1 {[%clk 0:00:47.1]} 17... Rg8 {[%clk 0:00:44.7]} 18. Qh5+ {[%clk 0:00:46.1]} 18... Kd7 {[%clk 0:00:42.7]} 19. Ne6 {[%clk 0:00:43]} 19... Qe8 {[%clk 0:00:38.1]} 20. Qh3 {[%clk 0:00:42.6]} 20... Qg6 {[%clk 0:00:36.1]} 21. Nf4+ {[%clk 0:00:40.3]} 21... Kd8 {[%clk 0:00:32.1]} 22. Nxg6 {[%clk 0:00:39.2]} 22... Bxh3 {[%clk 0:00:31]} 23. Nxe7 {[%clk 0:00:37.1]} 23... Kxe7 {[%clk 0:00:30.1]} 24. gxh3 {[%clk 0:00:36.4]} 24... g4 {[%clk 0:00:29.4]} 25. Kg2 {[%clk 0:00:34.3]} 25... gxh3+ {[%clk 0:00:27.9]} 26. Kxh3 {[%clk 0:00:33.9]} 26... Rg5 {[%clk 0:00:26.4]} 27. Ne2 {[%clk 0:00:30.4]} 27... Rag8 {[%clk 0:00:25]} 28. Nf4 {[%clk 0:00:28.9]} 28... Rh5+ {[%clk 0:00:24.1]} 29. Nxh5 {[%clk 0:00:17.1]} 29... Rg5 {[%clk 0:00:22.3]} 30. Nf4 {[%clk 0:00:15.8]} 30... h5 {[%clk 0:00:20.5]} 31. Kh4 {[%clk 0:00:14.1]} 31... Rg4+ {[%clk 0:00:19.5]} 32. Kxh5 {[%clk 0:00:13.6]} 32... Rg8 {[%clk 0:00:14.3]} 33. Nh3 {[%clk 0:00:12.8]} 33... Nd3 {[%clk 0:00:12.2]} 34. Ng5 {[%clk 0:00:10]} 34... Ne5 {[%clk 0:00:10]} 35. Rae1 {[%clk 0:00:06.7]} 35... Rh8+ {[%clk 0:00:09]} 36. Nh7 {[%clk 0:00:02.4]} 36... Rxh7+ {[%clk 0:00:08.3]} 37. Kg5 {[%clk 0:00:01.5]} 37... Rg7+ {[%clk 0:00:07.2]} 38. Kf5 {[%clk 0:00:00.9]} 38... Rf7+ {[%clk 0:00:05.9]} 0-1

[Event "Live Chess"]
[Site "Chess.com"]
[Date "2011.02.01"]
[Round "-"]
[White "tattooindude"]
[Black "hipposcottimus"]
[Result "1-0"]
[CurrentPosition "r3r1k1/p1b2p1p/5BpQ/2p1p3/2P1P3/4PK2/P7/3R2R1 b - -"]
[Timezone "UTC"]
[ECO "A00"]
[ECOUrl "https://www.chess.com/openings/Mieses-Opening-1...d5"]
[UTCDate "2011.02.01"]
[UTCTime "04:12:03"]
[WhiteElo "1705"]
[BlackElo "1669"]
[TimeControl "60"]
[Termination "tattooindude won by resignation"]
[StartTime "04:12:03"]
[EndDate "2011.02.01"]
[EndTime "04:13:50"]
[Link "https://www.chess.com/game/live/93520208"]

1. d3 {[%clk 0:01:00]} 1... d5 {[%clk 0:01:00]} 2. Nd2 {[%clk 0:00:59.9]} 2... d4 {[%clk 0:00:59.2]} 3. e3 {[%clk 0:00:59.8]} 3... e5 {[%clk 0:00:58.3]} 4. e4 {[%clk 0:00:58.7]} 4... c5 {[%clk 0:00:56.1]} 5. Ne2 {[%clk 0:00:56.7]} 5... Nc6 {[%clk 0:00:55.7]} 6. h3 {[%clk 0:00:55.9]} 6... Nf6 {[%clk 0:00:55.3]} 7. b3 {[%clk 0:00:54.8]} 7... Be6 {[%clk 0:00:55]} 8. Nc4 {[%clk 0:00:53.7]} 8... Bd6 {[%clk 0:00:54.8]} 9. Bd2 {[%clk 0:00:52.1]} 9... O-O {[%clk 0:00:53.3]} 10. Qc1 {[%clk 0:00:50.5]} 10... Bc7 {[%clk 0:00:52.4]} 11. g4 {[%clk 0:00:49.5]} 11... b5 {[%clk 0:00:52]} 12. Ng3 {[%clk 0:00:48.1]} 12... Nxg4 {[%clk 0:00:51.1]} 13. hxg4 {[%clk 0:00:46.4]} 13... bxc4 {[%clk 0:00:50.5]} 14. bxc4 {[%clk 0:00:45.2]} 14... Bxg4 {[%clk 0:00:49.8]} 15. Rg1 {[%clk 0:00:43.5]} 15... Qf6 {[%clk 0:00:46.9]} 16. Be2 {[%clk 0:00:42.4]} 16... Bf3 {[%clk 0:00:45.4]} 17. Bxf3 {[%clk 0:00:40.4]} 17... Qxf3 {[%clk 0:00:45.1]} 18. Nf5 {[%clk 0:00:39.4]} 18... g6 {[%clk 0:00:42.2]} 19. Bh6 {[%clk 0:00:37.2]} 19... Rfe8 {[%clk 0:00:39.5]} 20. Bg7 {[%clk 0:00:33.6]} 20... Nb4 {[%clk 0:00:37.3]} 21. Bf6 {[%clk 0:00:32.2]} 21... Nxd3+ {[%clk 0:00:34]} 22. cxd3 {[%clk 0:00:30.4]} 22... Qxd3 {[%clk 0:00:33.7]} 23. Qh6 {[%clk 0:00:28.3]} 23... Qc3+ {[%clk 0:00:28.6]} 24. Ke2 {[%clk 0:00:26.4]} 24... d3+ {[%clk 0:00:26.9]} 25. Kf3 {[%clk 0:00:24.4]} 25... d2+ {[%clk 0:00:22.3]} 26. Ne3 {[%clk 0:00:22.4]} 26... d1=Q+ {[%clk 0:00:12.2]} 27. Raxd1 {[%clk 0:00:19.1]} 27... Qxe3+ {[%clk 0:00:10.2]} 28. fxe3 {[%clk 0:00:17.2]} 1-0

[Event "Live Chess"]
[Site "Chess.com"]
[Date "2011.02.01"]
[Round "-"]
[White "hipposcottimus"]
[Black "TonyHem"]
[Result "0-1"]
[CurrentPosition "6rk/7p/8/p1p5/3q4/8/P1P1Q1PP/5R1K w - a6"]
[Timezone "UTC"]
[ECO "C41"]
[ECOUrl "https://www.chess.com/openings/Philidor-Defense-Exchange-Variation-4.Nxd4"]
[UTCDate "2011.02.01"]
[UTCTime "04:09:41"]
[WhiteElo "1669"]
[BlackElo "1715"]
[TimeControl "60"]
[Termination "TonyHem won on time"]
[StartTime "04:09:41"]
[EndDate "2011.02.01"]
[EndTime "04:11:38"]
[Link "https://www.chess.com/game/live/93519688"]

1. e4 {[%clk 0:01:00]} 1... e5 {[%clk 0:01:00]} 2. Nf3 {[%clk 0:00:57.9]} 2... d6 {[%clk 0:00:59.4]} 3. d4 {[%clk 0:00:56.5]} 3... exd4 {[%clk 0:00:58.6]} 4. Nxd4 {[%clk 0:00:55.2]} 4... Be7 {[%clk 0:00:58.3]} 5. Nc3 {[%clk 0:00:54.8]} 5... Nf6 {[%clk 0:00:57.6]} 6. Bd3 {[%clk 0:00:54.1]} 6... O-O {[%clk 0:00:57.1]} 7. Nde2 {[%clk 0:00:53.5]} 7... Nc6 {[%clk 0:00:56.6]} 8. f4 {[%clk 0:00:52.3]} 8... Bg4 {[%clk 0:00:55.9]} 9. O-O {[%clk 0:00:51.4]} 9... Nd4 {[%clk 0:00:53.4]} 10. Be3 {[%clk 0:00:46.5]} 10... Nxe2+ {[%clk 0:00:51.7]} 11. Bxe2 {[%clk 0:00:45]} 11... Bxe2 {[%clk 0:00:50.9]} 12. Qxe2 {[%clk 0:00:44.4]} 12... c5 {[%clk 0:00:50.5]} 13. Qf3 {[%clk 0:00:41.6]} 13... Qb6 {[%clk 0:00:49.6]} 14. Nd5 {[%clk 0:00:39.8]} 14... Qd8 {[%clk 0:00:46.5]} 15. e5 {[%clk 0:00:36.7]} 15... Nxd5 {[%clk 0:00:45.6]} 16. Qxd5 {[%clk 0:00:36.3]} 16... dxe5 {[%clk 0:00:45]} 17. Qe4 {[%clk 0:00:34.3]} 17... Bf6 {[%clk 0:00:43.9]} 18. fxe5 {[%clk 0:00:32.8]} 18... Re8 {[%clk 0:00:43.1]} 19. Rxf6 {[%clk 0:00:31.7]} 19... gxf6 {[%clk 0:00:40.6]} 20. Qg4+ {[%clk 0:00:28.9]} 20... Kh8 {[%clk 0:00:38.6]} 21. Rf1 {[%clk 0:00:20]} 21... Rg8 {[%clk 0:00:37.7]} 22. Qf5 {[%clk 0:00:18.9]} 22... fxe5 {[%clk 0:00:36.7]} 23. Qxe5+ {[%clk 0:00:17.8]} 23... Rg7 {[%clk 0:00:34.5]} 24. Bh6 {[%clk 0:00:16.9]} 24... Qg8 {[%clk 0:00:33]} 25. Bxg7+ {[%clk 0:00:16.4]} 25... Qxg7 {[%clk 0:00:32.3]} 26. Qf4 {[%clk 0:00:14.4]} 26... Rd8 {[%clk 0:00:30.2]} 27. Qf3 {[%clk 0:00:14.1]} 27... Kg8 {[%clk 0:00:27.5]} 28. Qxb7 {[%clk 0:00:12.1]} 28... Qxb2 {[%clk 0:00:24.8]} 29. Qxf7+ {[%clk 0:00:10.5]} 29... Kh8 {[%clk 0:00:23.4]} 30. Qe7 {[%clk 0:00:05.4]} 30... Rg8 {[%clk 0:00:21.6]} 31. Qe2 {[%clk 0:00:02]} 31... Qd4+ {[%clk 0:00:20.5]} 32. Kh1 {[%clk 0:00:00.1]} 32... a5 {[%clk 0:00:19.7]} 0-1

[Event "Live Chess"]
[Site "Chess.com"]
[Date "2011.02.01"]
[Round "-"]
[White "Aescon"]
[Black "hipposcottimus"]
[Result "0-1"]
[CurrentPosition "7k/7p/1K6/8/8/6p1/8/8 w - -"]
[Timezone "UTC"]
[ECO "A10"]
[ECOUrl "https://www.chess.com/openings/English-Opening-Jaenisch-Gambit"]
[UTCDate "2011.02.01"]
[UTCTime "03:58:44"]
[WhiteElo "1311"]
[BlackElo "1427"]
[TimeControl "420"]
[Termination "hipposcottimus won by resignation"]
[StartTime "03:58:44"]
[EndDate "2011.02.01"]
[EndTime "04:09:30"]
[Link "https://www.chess.com/game/live/93517013"]

1. c4 {[%clk 0:07:00]} 1... b5 {[%clk 0:07:00]} 2. cxb5 {[%clk 0:06:56]} 2... c6 {[%clk 0:06:59.4]} 3. e3 {[%clk 0:06:51.1]} 3... d5 {[%clk 0:06:56.2]} 4. Nf3 {[%clk 0:06:39.2]} 4... Bg4 {[%clk 0:06:52.9]} 5. bxc6 {[%clk 0:06:29.7]} 5... e5 {[%clk 0:06:43.8]} 6. Be2 {[%clk 0:06:20.6]} 6... Bxf3 {[%clk 0:06:37.6]} 7. Bxf3 {[%clk 0:06:17.7]} 7... e4 {[%clk 0:06:36.5]} 8. Be2 {[%clk 0:06:04.5]} 8... Nxc6 {[%clk 0:06:35.2]} 9. d4 {[%clk 0:05:59.5]} 9... Bd6 {[%clk 0:06:30]} 10. O-O {[%clk 0:05:56.8]} 10... Nf6 {[%clk 0:06:29]} 11. Nc3 {[%clk 0:05:52.8]} 11... O-O {[%clk 0:06:26.6]} 12. f3 {[%clk 0:05:44.5]} 12... Ne7 {[%clk 0:06:22.3]} 13. fxe4 {[%clk 0:05:38.1]} 13... dxe4 {[%clk 0:06:21.1]} 14. Bg4 {[%clk 0:05:28]} 14... Ned5 {[%clk 0:06:17.7]} 15. Nxe4 {[%clk 0:05:23.5]} 15... Nxe4 {[%clk 0:06:13.3]} 16. Qf3 {[%clk 0:05:01.8]} 16... Ng5 {[%clk 0:06:02.8]} 17. Qxd5 {[%clk 0:04:53.6]} 17... Bxh2+ {[%clk 0:06:00.7]} 18. Kxh2 {[%clk 0:04:44.3]} 18... Qxd5 {[%clk 0:06:00.2]} 19. e4 {[%clk 0:04:34]} 19... Nxe4 {[%clk 0:05:58.2]} 20. Bf3 {[%clk 0:04:29.6]} 20... Qf5 {[%clk 0:05:55.4]} 21. Be3 {[%clk 0:04:21.4]} 21... Rae8 {[%clk 0:05:43.9]} 22. Rac1 {[%clk 0:04:08.3]} 22... Ng5 {[%clk 0:05:32.3]} 23. Bc6 {[%clk 0:04:04.9]} 23... Qe6 {[%clk 0:05:07]} 24. Bxe8 {[%clk 0:03:58.9]} 24... Qxe3 {[%clk 0:05:02.9]} 25. Bb5 {[%clk 0:03:46.4]} 25... Qxd4 {[%clk 0:04:58.7]} 26. b3 {[%clk 0:03:43.2]} 26... Qh4+ {[%clk 0:04:56.6]} 27. Kg1 {[%clk 0:03:38.9]} 27... Ne4 {[%clk 0:04:52.7]} 28. Bc4 {[%clk 0:03:27.6]} 28... Ng3 {[%clk 0:04:48.5]} 29. Rfe1 {[%clk 0:03:21.3]} 29... Qd4+ {[%clk 0:04:28.6]} 30. Kh2 {[%clk 0:03:18]} 30... Ne4 {[%clk 0:04:27.6]} 31. Rf1 {[%clk 0:03:06]} 31... Kh8 {[%clk 0:04:19.8]} 32. Rcd1 {[%clk 0:03:03.2]} 32... Qe5+ {[%clk 0:04:18.5]} 33. Kg1 {[%clk 0:03:01]} 33... f5 {[%clk 0:04:17.3]} 34. Bd3 {[%clk 0:02:56.4]} 34... Ng3 {[%clk 0:04:14]} 35. Rfe1 {[%clk 0:02:45.1]} 35... Qd4+ {[%clk 0:04:07.8]} 36. Kh2 {[%clk 0:02:37]} 36... f4 {[%clk 0:04:07.4]} 37. Bc4 {[%clk 0:02:30.7]} 37... Qf6 {[%clk 0:03:58.1]} 38. Rf1 {[%clk 0:02:22.4]} 38... Qh4+ {[%clk 0:03:55]} 39. Kg1 {[%clk 0:02:20.1]} 39... Nxf1 {[%clk 0:03:48.9]} 40. Rxf1 {[%clk 0:02:15.8]} 40... Re8 {[%clk 0:03:46.8]} 41. a4 {[%clk 0:01:48.6]} 41... Re1 {[%clk 0:03:16.9]} 42. b4 {[%clk 0:01:40.7]} 42... Rxf1+ {[%clk 0:03:15.6]} 43. Kxf1 {[%clk 0:01:36.5]} 43... f3 {[%clk 0:03:15.3]} 44. Bd3 {[%clk 0:01:23.4]} 44... Qh1+ {[%clk 0:03:12.5]} 45. Kf2 {[%clk 0:01:17.9]} 45... Qxg2+ {[%clk 0:03:12.1]} 46. Ke3 {[%clk 0:01:15.3]} 46... f2 {[%clk 0:03:10.8]} 47. Kd4 {[%clk 0:01:09.3]} 47... Qg1 {[%clk 0:03:09.6]} 48. Kc4 {[%clk 0:01:05.1]} 48... f1=Q {[%clk 0:03:05.4]} 49. Bxf1 {[%clk 0:01:02.9]} 49... Qxf1+ {[%clk 0:03:05.1]} 50. Kc5 {[%clk 0:01:01]} 50... a6 {[%clk 0:03:03.9]} 51. Kb6 {[%clk 0:00:58.6]} 51... Qf6+ {[%clk 0:03:00.1]} 52. Ka5 {[%clk 0:00:56.7]} 52... g5 {[%clk 0:02:59.7]} 53. b5 {[%clk 0:00:52.6]} 53... axb5 {[%clk 0:02:58]} 54. axb5 {[%clk 0:00:50.9]} 54... g4 {[%clk 0:02:57.5]} 55. b6 {[%clk 0:00:49.2]} 55... Qxb6+ {[%clk 0:02:56.1]} 56. Kxb6 {[%clk 0:00:47.2]} 56... g3 {[%clk 0:02:55.7]} 0-1

[Event "Live Chess"]
[Site "Chess.com"]
[Date "2011.02.01"]
[Round "-"]
[White "hipposcottimus"]
[Black "Theflashpoint"]
[Result "1-0"]
[CurrentPosition "8/2p2k1p/pp4p1/8/r4PKP/6P1/8/8 b - h3"]
[Timezone "UTC"]
[ECO "C45"]
[ECOUrl "https://www.chess.com/openings/Scotch-Game"]
[UTCDate "2011.02.01"]
[UTCTime "03:44:32"]
[WhiteElo "1669"]
[BlackElo "1470"]
[TimeControl "60"]
[Termination "hipposcottimus won on time"]
[StartTime "03:44:32"]
[EndDate "2011.02.01"]
[EndTime "03:46:45"]
[Link "https://www.chess.com/game/live/93513851"]

1. e4 {[%clk 0:01:00]} 1... e5 {[%clk 0:01:00]} 2. Nf3 {[%clk 0:00:59.6]} 2... Nc6 {[%clk 0:00:59.5]} 3. d4 {[%clk 0:00:58.5]} 3... f5 {[%clk 0:00:58.2]} 4. d5 {[%clk 0:00:57]} 4... fxe4 {[%clk 0:00:56.9]} 5. dxc6 {[%clk 0:00:55.3]} 5... exf3 {[%clk 0:00:55.8]} 6. cxd7+ {[%clk 0:00:54.7]} 6... Qxd7 {[%clk 0:00:51.7]} 7. Qxf3 {[%clk 0:00:54.3]} 7... Nf6 {[%clk 0:00:48.7]} 8. Nc3 {[%clk 0:00:52.4]} 8... Bb4 {[%clk 0:00:47.5]} 9. Bd2 {[%clk 0:00:49.2]} 9... O-O {[%clk 0:00:45.7]} 10. Bc4+ {[%clk 0:00:46.6]} 10... Kh8 {[%clk 0:00:40.2]} 11. O-O {[%clk 0:00:46.1]} 11... Qxd2 {[%clk 0:00:36.9]} 12. Ne4 {[%clk 0:00:38.3]} 12... Nxe4 {[%clk 0:00:34.8]} 13. Qxe4 {[%clk 0:00:37.4]} 13... Qf4 {[%clk 0:00:28.9]} 14. Qd5 {[%clk 0:00:35]} 14... Bg4 {[%clk 0:00:26.3]} 15. Rae1 {[%clk 0:00:34.1]} 15... Qg5 {[%clk 0:00:24.6]} 16. Rxe5 {[%clk 0:00:32.1]} 16... Rf5 {[%clk 0:00:21.9]} 17. Rxf5 {[%clk 0:00:24.3]} 17... Qxf5 {[%clk 0:00:20.9]} 18. Rd1 {[%clk 0:00:21.8]} 18... Qxd5 {[%clk 0:00:19.3]} 19. Rxd5 {[%clk 0:00:20.5]} 19... Rf8 {[%clk 0:00:18.1]} 20. f3 {[%clk 0:00:19.4]} 20... Be6 {[%clk 0:00:16.1]} 21. Rd4 {[%clk 0:00:15.4]} 21... Bxc4 {[%clk 0:00:15.1]} 22. Rxc4 {[%clk 0:00:15.1]} 22... Bd6 {[%clk 0:00:14.4]} 23. b4 {[%clk 0:00:14.2]} 23... b6 {[%clk 0:00:13.7]} 24. a4 {[%clk 0:00:13.9]} 24... a6 {[%clk 0:00:13.1]} 25. Rc3 {[%clk 0:00:13.3]} 25... Re8 {[%clk 0:00:12.4]} 26. Rb3 {[%clk 0:00:13]} 26... Re1+ {[%clk 0:00:11.2]} 27. Kf2 {[%clk 0:00:12.7]} 27... Rc1 {[%clk 0:00:10.6]} 28. c3 {[%clk 0:00:10.7]} 28... Be5 {[%clk 0:00:09.5]} 29. c4 {[%clk 0:00:08.1]} 29... Rxc4 {[%clk 0:00:07.7]} 30. Re3 {[%clk 0:00:07.8]} 30... Bd4 {[%clk 0:00:06.5]} 31. Ke2 {[%clk 0:00:05]} 31... Bxe3 {[%clk 0:00:06.4]} 32. Kxe3 {[%clk 0:00:04.5]} 32... Rxb4 {[%clk 0:00:06.3]} 33. f4 {[%clk 0:00:04.2]} 33... Rxa4 {[%clk 0:00:06.2]} 34. Kf3 {[%clk 0:00:03.7]} 34... Kg8 {[%clk 0:00:06.1]} 35. Kg4 {[%clk 0:00:03.4]} 35... Kf7 {[%clk 0:00:04.8]} 36. g3 {[%clk 0:00:03.2]} 36... g6 {[%clk 0:00:02.5]} 37. h4 {[%clk 0:00:02.9]} 1-0

[Event "Live Chess"]
[Site "Chess.com"]
[Date "2011.02.01"]
[Round "-"]
[White "Theflashpoint"]
[Black "hipposcottimus"]
[Result "0-1"]
[CurrentPosition "4rrk1/pb3ppp/6q1/5n2/1PP2B2/1Q4PP/P1P3N1/RN3RK1 w - -"]
[Timezone "UTC"]
[ECO "C58"]
[ECOUrl "https://www.chess.com/openings/Italian-Game-Knight-Attack-Polerio-Kieseritzky-Variation"]
[UTCDate "2011.02.01"]
[UTCTime "03:41:57"]
[WhiteElo "1474"]
[BlackElo "1665"]
[TimeControl "60"]
[Termination "hipposcottimus won on time"]
[StartTime "03:41:57"]
[EndDate "2011.02.01"]
[EndTime "03:43:55"]
[Link "https://www.chess.com/game/live/93513332"]

1. e4 {[%clk 0:01:00]} 1... e5 {[%clk 0:01:00]} 2. Nf3 {[%clk 0:00:58.6]} 2... Nc6 {[%clk 0:00:58.9]} 3. Bc4 {[%clk 0:00:57.5]} 3... Nf6 {[%clk 0:00:55.5]} 4. Ng5 {[%clk 0:00:56.9]} 4... d5 {[%clk 0:00:54.6]} 5. exd5 {[%clk 0:00:56.3]} 5... Na5 {[%clk 0:00:53.8]} 6. d3 {[%clk 0:00:55.3]} 6... Bd6 {[%clk 0:00:50.4]} 7. O-O {[%clk 0:00:48.7]} 7... O-O {[%clk 0:00:49.1]} 8. Qf3 {[%clk 0:00:45]} 8... c6 {[%clk 0:00:44.9]} 9. dxc6 {[%clk 0:00:41.4]} 9... Nxc4 {[%clk 0:00:44.1]} 10. dxc4 {[%clk 0:00:38.4]} 10... bxc6 {[%clk 0:00:43]} 11. Qxc6 {[%clk 0:00:37.1]} 11... Rb8 {[%clk 0:00:42.4]} 12. b3 {[%clk 0:00:35.3]} 12... Bb7 {[%clk 0:00:41.7]} 13. Qa4 {[%clk 0:00:25.4]} 13... Ng4 {[%clk 0:00:31.5]} 14. h3 {[%clk 0:00:21.9]} 14... Nh6 {[%clk 0:00:29.8]} 15. b4 {[%clk 0:00:20.6]} 15... Be7 {[%clk 0:00:27.3]} 16. Nf3 {[%clk 0:00:18.7]} 16... e4 {[%clk 0:00:25.3]} 17. Ne1 {[%clk 0:00:15.6]} 17... Bd6 {[%clk 0:00:23.6]} 18. Qb3 {[%clk 0:00:14.2]} 18... Qf6 {[%clk 0:00:20.2]} 19. g3 {[%clk 0:00:11.6]} 19... e3 {[%clk 0:00:17]} 20. Bxe3 {[%clk 0:00:10.5]} 20... Bxg3 {[%clk 0:00:15.1]} 21. fxg3 {[%clk 0:00:07.7]} 21... Qg6 {[%clk 0:00:14.8]} 22. Bf4 {[%clk 0:00:05.4]} 22... Nf5 {[%clk 0:00:13.3]} 23. Ng2 {[%clk 0:00:01.6]} 23... Rbe8 {[%clk 0:00:12.4]} 0-1